bitfinex-derivatives/quotes_BTCF0:USTF0_20251009
["timestamp","ask_amount","ask_price","bid_price","bid_amount"]
[1760020230177,2.53561377,121600.0,121570.0,0.3608]
[1760020230178,0.34202118,121580.0,121570.0,0.3608]
[1760020230581,0.74202118,121580.0,121570.0,0.0178]
[1760020230790,1.87962118,121580.0,121560.0,0.01406001]
[1760020231085,0.74202118,121570.0,121560.0,0.3608]
[1760020231289,1.51878118,121570.0,121560.0,0.0178]
[1760020231487,0.74202118,121570.0,121560.0,0.0178]
[1760020231781,0.36004377,121570.0,121560.0,0.0178]
[1760020232080,1.13680377,121570.0,121560.0,0.0178]
[1760020232286,1.13676377,121570.0,121560.0,0.0178]
[1760020232783,1.20184602,121570.0,121560.0,0.0178]
[1760020232983,0.42512602,121570.0,121560.0,0.0178]
[1760020233176,1.20180602,121570.0,121560.0,0.0178]
[1760020233381,0.08310484,121570.0,121560.0,0.0178]
[1760020233581,0.06508225,121570.0,121560.0,0.3786]
[1760020233789,0.001,121570.0,121560.0,0.3786]
[1760020233984,0.47044,121570.0,121560.0,0.3786]
[1760020234181,0.001,121570.0,121560.0,0.3786]
[1760020234382,1.51966118,121570.0,121560.0,0.3786]
[1760020234784,0.34302118,121570.0,121560.0,0.3786]
[1760020235178,1.11966118,121570.0,121560.0,0.3786]
[1760020235376,0.34302118,121570.0,121560.0,0.3786]
[1760020235583,0.001,121570.0,121560.0,0.3786]
[1760020235782,1.11966118,121570.0,121560.0,0.3786]
[1760020235979,0.001,121570.0,121560.0,0.3786]
[1760020236186,0.06693723,121570.0,121560.0,1.33653363]
[1760020236382,0.001,121570.0,121560.0,1.33653363]
[1760020236589,0.001,121570.0,121560.0,2.07855481]
[1760020236889,0.00592541,121600.0,121590.0,0.0178]
[1760020237085,0.34202118,121610.0,121600.0,0.0178]
[1760020237086,0.47209138,121610.0,121600.0,0.0178]
[1760020237284,0.34202118,121610.0,121600.0,0.3786]
[1760020237480,0.40434502,121630.0,121620.0,0.0178]
[1760020237687,0.0271,121620.0,121610.0,0.3786]
[1760020237886,0.36912118,121620.0,121610.0,0.3786]
[1760020238090,0.11931656,121630.0,121620.0,0.0178]
[1760020238287,0.48382559,121630.0,121620.0,0.3786]
[1760020238486,0.48382559,121630.0,121610.0,0.0178]
[1760020238487,0.88382559,121630.0,121610.0,0.0178]
[1760020238792,0.90260441,121630.0,121620.0,0.0178]
[1760020238990,2.02106559,121630.0,121620.0,0.0178]
[1760020239193,0.84462559,121630.0,121620.0,0.0178]
[1760020239390,1.62106559,121630.0,121620.0,0.0178]
[1760020239693,1.62306559,121630.0,121610.0,0.0178]
[1760020239891,0.70282118,121620.0,121610.0,0.0178]
[1760020240192,0.36450903,121620.0,121610.0,0.3786]
[1760020240392,1.14082903,121620.0,121610.0,0.3786]
[1760020240991,0.02248785,121620.0,121610.0,0.3786]
[1760020241291,0.34202118,121620.0,121610.0,0.3786]
[1760020241494,0.02248785,121620.0,121610.0,0.3786]
[1760020241694,0.36450903,121620.0,121610.0,0.3786]
[1760020241992,0.02248785,121620.0,121610.0,0.3786]
[1760020242193,0.36650903,121620.0,121610.0,0.29607]
[1760020242397,0.36650903,121620.0,121610.0,0.69607]
[1760020242793,0.36650903,121620.0,121610.0,0.29607]
[1760020243091,0.36650903,121620.0,121610.0,0.77827]
[1760020243296,0.36650903,121620.0,121610.0,0.01747]
[1760020243596,0.36650903,121620.0,121610.0,0.37827]
[1760020244693,1.12730903,121620.0,121600.0,0.01354912]
[1760020244892,1.11802118,121610.0,121590.0,0.36871001]
[1760020245091,1.11802118,121600.0,121590.0,0.36871001]
[1760020245296,1.14050903,121600.0,121590.0,0.36871001]
[1760020245691,1.14050903,121600.0,121590.0,0.02626]
[1760020245891,1.14046903,121600.0,121590.0,0.02626]
[1760020246497,1.14042903,121600.0,121580.0,0.37827]
[1760020246697,0.34202118,121590.0,121580.0,0.37827]
[1760020246892,0.36450903,121590.0,121570.0,0.38706]
[1760020247194,0.36450903,121590.0,121570.0,0.02626]
[1760020247195,1.14500118,121580.0,121570.0,0.02626]
[1760020247498,1.16748903,121580.0,121570.0,0.02626]
[1760020247798,1.14038903,121580.0,121570.0,0.02626]
[1760020248297,1.14138903,121580.0,121570.0,0.02626]
[1760020249195,0.02348785,121580.0,121570.0,1.31736363]
[1760020249792,0.36550903,121580.0,121570.0,1.31736363]
[1760020250192,0.02348785,121580.0,121570.0,1.31736363]
[1760020250391,0.07115103,121620.0,121570.0,1.65938481]
[1760020250392,0.05692082,121620.0,121570.0,1.65938481]
[1760020250595,0.46712,121610.0,121600.0,1.29387578]
[1760020251000,0.34202118,121620.0,121610.0,0.02626]
[1760020251201,1.87850118,121620.0,121610.0,0.02626]
[1760020251401,1.47850118,121620.0,121600.0,0.02626]
[1760020251597,0.34202118,121610.0,121600.0,0.02626]
[1760020251798,1.10282118,121610.0,121590.0,0.02626]
[1760020251998,1.10282118,121610.0,121580.0,0.02626]
[1760020251999,1.87846118,121600.0,121580.0,0.02626]
[1760020252204,0.34202118,121590.0,121580.0,0.40277215]
[1760020253904,0.70282118,121590.0,121580.0,0.40277215]
[1760020254804,0.3608,121590.0,121580.0,0.40277215]
[1760020254999,0.06678883,121600.0,121590.0,0.02626]
[1760020255205,0.34202118,121600.0,121590.0,1.29387578]
[1760020255406,0.41972082,121620.0,121610.0,0.02626]
[1760020255599,1.48026118,121620.0,121610.0,0.02626]
[1760020255796,0.76752168,121620.0,121610.0,0.02626]
[1760020256003,1.18216168,121620.0,121610.0,0.02626]
[1760020256204,1.22370406,121620.0,121610.0,0.02626]
[1760020256404,1.58446406,121620.0,121610.0,0.02626]
[1760020256698,1.91462762,121620.0,121580.0,0.55656363]
[1760020257006,0.3608,121590.0,121580.0,0.02214396]
[1760020257202,0.3608,121590.0,121580.0,0.39865611]
[1760020257398,0.73028,121590.0,121580.0,0.75945611]
[1760020257602,1.11384356,121590.0,121580.0,1.28975974]
[1760020257796,0.38356356,121590.0,121580.0,1.28975974]
[1760020258503,0.4275005,121620.0,121610.0,0.02626]
[1760020258707,0.81106406,121620.0,121610.0,0.02626]
[1760020258905,1.58434406,121620.0,121610.0,0.02626]
[1760020259208,1.22350406,121620.0,121610.0,0.40277215]
[1760020259406,0.0647005,121620.0,121610.0,1.29387578]
[1760020259605,1.21348174,121630.0,121610.0,1.29387578]
[1760020259909,0.002,121620.0,121610.0,0.38706]
[1760020260103,0.002,121620.0,121610.0,0.91736363]
[1760020260304,0.38556356,121620.0,121610.0,1.29387578]
[1760020260501,0.38356356,121620.0,121610.0,1.29387578]
[1760020260804,1.55972356,121620.0,121610.0,0.76357215]
[1760020261011,1.92052356,121620.0,121600.0,0.02626]
[1760020261202,1.15868356,121610.0,121600.0,0.02626]
[1760020261397,1.14436356,121610.0,121590.0,0.02626]
[1760020261702,0.77508,121600.0,121590.0,0.93307578]
[1760020261901,1.15864356,121600.0,121590.0,0.93307578]
[1760020262102,0.38356356,121600.0,121590.0,0.93307578]
[1760020262408,1.15864356,121600.0,121590.0,0.93307578]
[1760020262704,0.02245167,121600.0,121590.0,0.93307578]
[1760020262911,0.02245167,121600.0,121590.0,1.29387578]
[1760020263210,0.02245167,121600.0,121590.0,1.69387578]
[1760020263509,1.02248356,121640.0,121630.0,0.02626]
[1760020263709,1.0881462,121640.0,121630.0,0.02626]
[1760020263911,0.70458264,121640.0,121630.0,0.02626]
[1760020264101,1.2241862,121640.0,121630.0,0.02626]
[1760020264609,1.23490212,121640.0,121630.0,0.02626]
[1760020264908,1.23490212,121640.0,121630.0,0.91736363]
[1760020264909,1.23486212,121640.0,121630.0,0.91736363]
[1760020265208,0.45994212,121640.0,121630.0,0.55656363]
[1760020265708,1.63482212,121640.0,121620.0,0.38706]
[1760020266006,0.38356356,121630.0,121620.0,0.38706]
[1760020266304,1.15840356,121630.0,121620.0,0.38706]
[1760020266501,1.15836356,121630.0,121620.0,0.02626]
[1760020266701,1.55836356,121630.0,121610.0,0.38706]
[1760020266906,1.15832356,121620.0,121610.0,0.38706]
[1760020268300,0.43917856,121640.0,121620.0,0.02626]
[1760020268502,1.15592356,121630.0,121620.0,0.38706]
[1760020268809,1.51872356,121630.0,121610.0,0.02626]
[1760020269110,0.38356356,121620.0,121610.0,0.38706]
[1760020269312,0.38356356,121620.0,121610.0,0.91736363]
[1760020270606,1.55812356,121620.0,121600.0,0.38706]
[1760020270811,1.17456,121620.0,121600.0,0.38706]
[1760020271010,0.39859848,121610.0,121600.0,0.38706]
[1760020271217,0.39859848,121610.0,121600.0,0.77062356]
[1760020271808,0.002,121620.0,121600.0,0.77062356]
[1760020272115,0.002,121620.0,121610.0,1.30219719]
[1760020272314,0.77444,121630.0,121620.0,0.02753]
[1760020272514,0.77444,121630.0,121620.0,0.94139719]
[1760020272711,0.77444,121630.0,121620.0,0.77189356]
[1760020272909,0.01071592,121640.0,121630.0,0.02753]
[1760020273113,0.77444,121640.0,121630.0,0.41109356]
[1760020273308,0.3608,121650.0,121620.0,0.77189356]
[1760020273510,0.3608,121640.0,121620.0,0.02753]
[1760020273710,0.3608,121640.0,121610.0,0.38833]
[1760020273711,0.7744,121630.0,121610.0,0.38833]
[1760020274013,1.1352,121630.0,121610.0,0.55783363]
[1760020274205,0.7608,121630.0,121600.0,0.38706]
[1760020274403,0.7608,121630.0,121600.0,0.91736363]
[1760020274404,0.77436,121620.0,121600.0,0.91736363]
[1760020274608,0.77436,121610.0,121600.0,0.91736363]
[1760020274814,1.13516,121610.0,121590.0,0.38833]
[1760020275003,1.13516,121610.0,121590.0,0.77189356]
[1760020275409,1.53516,121610.0,121590.0,0.38833]
[1760020275610,0.7608,121600.0,121570.0,0.38503725]
[1760020275810,0.3608,121590.0,121570.0,0.41109356]
[1760020276011,0.77428,121580.0,121570.0,0.41109356]
[1760020276208,0.3608,121590.0,121570.0,0.41109356]
[1760020276408,0.77428,121580.0,121570.0,0.55783363]
[1760020276610,0.77428,121580.0,121570.0,1.30219719]
[1760020276910,0.77428,121580.0,121570.0,0.91863363]
[1760020277112,0.4,121580.0,121560.0,0.77189356]
[1760020277308,0.3608,121590.0,121560.0,0.77189356]
[1760020277508,0.3608,121590.0,121570.0,0.02753]
[1760020277711,0.77424,121580.0,121570.0,0.02753]
[1760020278214,1.17424,121580.0,121560.0,0.77189356]
[1760020278416,0.77424,121580.0,121560.0,1.30219719]
[1760020278610,0.77424,121580.0,121570.0,0.02753]
[1760020278810,0.3608,121580.0,121560.0,0.55783363]
[1760020279011,0.68572,121570.0,121560.0,0.55783363]
[1760020279211,0.68572,121570.0,121560.0,0.02753]
[1760020279615,0.3608,121580.0,121560.0,0.02753]
[1760020280012,0.77416,121570.0,121560.0,0.02753]
[1760020280315,0.77416,121570.0,121550.0,0.77189356]
[1760020280516,0.77416,121570.0,121550.0,0.38833]
[1760020280716,0.77416,121560.0,121550.0,1.30219719]
[1760020281105,0.7608,121560.0,121540.0,0.38838748]
[1760020281310,0.77412,121550.0,121540.0,0.91869111]
[1760020281513,0.3608,121560.0,121540.0,1.30225467]
[1760020281710,0.77416,121550.0,121540.0,0.91869111]
[1760020281916,0.77412,121550.0,121540.0,0.91869111]
[1760020282109,0.77412,121550.0,121540.0,0.3608]
[1760020282309,1.14436356,121550.0,121530.0,0.02753]
[1760020282513,0.77412,121540.0,121530.0,0.94139719]
[1760020282818,0.78521969,121540.0,121530.0,1.30219719]
[1760020283010,0.78521969,121540.0,121530.0,0.91863363]
[1760020283206,0.78528801,121540.0,121530.0,1.30219719]
[1760020283408,0.77418832,121540.0,121530.0,0.91863363]
[1760020283809,6.832e-05,121540.0,121530.0,0.91863363]
[1760020284209,0.01073665,121540.0,121530.0,1.70219719]
[1760020284418,0.01073665,121540.0,121530.0,1.31863363]
[1760020284621,0.01073665,121540.0,121530.0,1.70219719]
[1760020285913,0.01073665,121540.0,121530.0,1.30219719]
[1760020286114,0.01073665,121540.0,121530.0,1.70219719]
[1760020286320,0.01073665,121540.0,121530.0,1.30219719]
[1760020286516,0.01073665,121540.0,121530.0,0.55783363]
[1760020286517,0.78477665,121540.0,121530.0,0.55783363]
[1760020286715,1.92907189,121540.0,121510.0,0.38833]
[1760020287019,1.92907189,121540.0,121510.0,0.35994]
[1760020287020,1.13489754,121530.0,121510.0,0.35994]
[1760020287416,0.77404,121520.0,121510.0,0.35994]
[1760020287610,6.832e-05,121520.0,121510.0,0.35994]
[1760020287817,0.77406832,121520.0,121510.0,0.35994]
[1760020288212,6.832e-05,121520.0,121510.0,0.35994]
[1760020288411,0.77406832,121520.0,121510.0,0.88429363]
[1760020288616,0.77406832,121520.0,121510.0,1.26785719]
[1760020289022,6.832e-05,121520.0,121510.0,1.26785719]
[1760020289416,0.77506832,121520.0,121510.0,1.26785719]
[1760020289616,0.00106832,121520.0,121510.0,1.26785719]
[1760020290124,0.00106832,121520.0,121510.0,1.66785719]
[1760020290629,0.00106832,121520.0,121510.0,2.44185719]
[1760020291019,0.00106832,121520.0,121510.0,1.66785719]
[1760020291224,0.00106832,121520.0,121510.0,2.44181719]
[1760020291420,0.06690087,121550.0,121510.0,2.44181719]
[1760020291421,0.03161235,121560.0,121550.0,0.02753]
[1760020291721,0.76257235,121560.0,121550.0,1.29624719]
[1760020291920,0.76257235,121560.0,121550.0,0.77189356]
[1760020292125,0.3608,121580.0,121550.0,1.29624719]
[1760020292317,0.0331796,121580.0,121570.0,0.02753]
[1760020292721,0.8070996,121580.0,121570.0,0.02753]
[1760020292924,0.7939796,121580.0,121550.0,0.38833]
[1760020293227,1.13472,121570.0,121550.0,0.02753]
[1760020293423,0.3628,121560.0,121550.0,0.02753]
[1760020293723,0.002,121560.0,121550.0,0.91268363]
[1760020294026,0.002,121560.0,121550.0,1.29624719]
[1760020294226,0.77588,121570.0,121560.0,0.02753]
[1760020294421,0.79808608,121570.0,121560.0,0.55188363]
[1760020294915,0.02420608,121570.0,121560.0,0.55188363]
[1760020295120,0.02220608,121570.0,121560.0,0.55188363]
[1760020295821,0.38300608,121570.0,121560.0,0.02753]
[1760020296024,1.55680608,121570.0,121550.0,0.02753]
[1760020296213,0.76656964,121570.0,121550.0,0.55188363]
[1760020296418,0.77376,121560.0,121550.0,0.55188363]
[1760020296621,0.79596608,121560.0,121550.0,0.91268363]
[1760020296820,0.79596608,121560.0,121550.0,1.29624719]
[1760020297222,0.02220608,121560.0,121550.0,0.91268363]
[1760020297424,0.79592608,121560.0,121550.0,0.91268363]
[1760020297732,0.79792608,121560.0,121550.0,0.91268363]
[1760020298724,0.79792608,121560.0,121550.0,0.55188363]
[1760020298919,1.15872608,121560.0,121550.0,0.55188363]
[1760020299123,0.79792608,121560.0,121550.0,0.55188363]
[1760020299928,0.79792608,121560.0,121550.0,0.52435363]
[1760020300326,0.79780608,121560.0,121550.0,0.91293363]
[1760020300524,0.79780608,121560.0,121550.0,1.29649719]
[1760020300826,0.02420608,121560.0,121550.0,0.91293363]
[1760020301023,0.79776608,121560.0,121550.0,1.29649719]
[1760020301221,0.79776608,121560.0,121550.0,0.88515363]
[1760020301222,0.02420608,121560.0,121550.0,0.88515363]
[1760020301430,0.79776608,121560.0,121550.0,0.88515363]
[1760020301629,1.16856964,121560.0,121530.0,0.77189356]
[1760020301826,0.3608,121550.0,121540.0,0.52435363]
[1760020302129,0.38300608,121550.0,121540.0,0.52435363]
[1760020302323,0.79572608,121550.0,121530.0,0.38858]
[1760020302631,0.38300608,121550.0,121540.0,0.52435363]
[1760020302829,0.79572608,121550.0,121540.0,0.52435363]
[1760020303131,1.15652608,121550.0,121530.0,0.77214356]
[1760020303430,0.79568608,121550.0,121540.0,0.52435363]
[1760020303726,1.15648608,121550.0,121540.0,0.52435363]
[1760020303923,1.15648608,121550.0,121530.0,0.3608]
[1760020304129,1.15648608,121550.0,121540.0,0.52435363]
[1760020304331,0.02220608,121550.0,121540.0,1.29649719]
[1760020304526,0.79564608,121550.0,121540.0,0.93569719]
[1760020304732,0.79664608,121550.0,121540.0,1.29649719]
[1760020304932,1.55744608,121550.0,121520.0,0.30557589]
[1760020305129,0.38356356,121530.0,121500.0,0.04748]
[1760020305321,0.79560608,121530.0,121520.0,0.49811654]
[1760020305724,0.79560608,121530.0,121500.0,0.04748]
[1760020305926,0.78496608,121530.0,121520.0,0.53050654]
[1760020306331,0.78496608,121530.0,121520.0,0.03239]
[1760020306530,0.78496608,121530.0,121520.0,1.2748701]
[1760020306730,0.78496608,121530.0,121520.0,0.89130654]
[1760020306929,0.38300608,121530.0,121520.0,0.9140701]
[1760020307129,0.02220608,121530.0,121520.0,0.49811654]
[1760020307329,0.02220608,121530.0,121520.0,0.53050654]
[1760020307633,0.02220608,121530.0,121520.0,0.9140701]
[1760020307834,0.001,121530.0,121520.0,0.53050654]
[1760020308030,0.02320608,121530.0,121520.0,1.2748701]
[1760020308231,0.02320608,121530.0,121520.0,0.9140701]
[1760020308425,0.02320608,121530.0,121520.0,1.2748701]
[1760020308937,0.02320608,121530.0,121520.0,0.53050654]
[1760020309130,0.02320608,121530.0,121520.0,0.49811654]
[1760020309538,0.02320608,121530.0,121520.0,0.9140701]
[1760020310034,0.09022418,121530.0,121520.0,1.2748701]
[1760020310236,0.02320608,121530.0,121520.0,0.9140701]
[1760020310436,0.02320608,121530.0,121520.0,1.2748701]
[1760020310637,0.02320608,121530.0,121520.0,0.9140701]
[1760020311028,0.02320608,121530.0,121520.0,0.49811654]
[1760020311029,0.38400608,121530.0,121520.0,0.49811654]
[1760020311534,0.02320608,121530.0,121520.0,0.53050654]
[1760020311730,0.02320608,121530.0,121520.0,1.2748701]
[1760020312331,0.02320608,121530.0,121520.0,1.17675356]
[1760020312628,0.02320608,121530.0,121520.0,2.4480701]
[1760020313331,0.02320608,121530.0,121520.0,1.6748701]
[1760020313834,0.06183238,121540.0,121530.0,0.53050654]
[1760020314031,0.3608,121560.0,121540.0,0.03239]
[1760020314232,0.3608,121560.0,121550.0,0.53050654]
[1760020314431,0.06606763,121560.0,121550.0,0.9140701]
[1760020314631,0.41772082,121570.0,121550.0,0.9140701]
[1760020314838,0.05692082,121570.0,121560.0,0.9140701]
[1760020315033,0.05692082,121570.0,121560.0,0.89431733]
[1760020315235,0.06789487,121580.0,121570.0,0.03239]
[1760020315531,0.06884566,121580.0,121570.0,0.51075377]
[1760020315940,0.06884566,121580.0,121570.0,1.25511733]
[1760020316136,0.06884566,121580.0,121570.0,1.2145377]
[1760020316339,0.06884566,121580.0,121570.0,0.87155377]
[1760020316541,0.01097405,121580.0,121570.0,1.6145377]
[1760020316741,0.12448191,121590.0,121570.0,2.3875377]
[1760020316937,0.12448191,121590.0,121580.0,1.2145377]
[1760020316938,0.05787161,121590.0,121580.0,1.2145377]
[1760020317236,0.05787161,121600.0,121590.0,0.03239]
[1760020317436,0.12902264,121610.0,121590.0,0.73617393]
[1760020317741,0.07115103,121620.0,121600.0,1.50913393]
[1760020317941,0.17076247,121630.0,121610.0,1.2145377]
[1760020318142,0.07115103,121630.0,121620.0,1.9874577]
[1760020318437,0.07115103,121640.0,121620.0,1.64447377]
[1760020318640,0.07115103,121640.0,121620.0,0.39319]
[1760020318840,0.05780657,121630.0,121620.0,0.39319]
[1760020319236,0.05780657,121630.0,121620.0,1.2145377]
[1760020319842,0.05780657,121630.0,121620.0,1.6145377]
[1760020320031,0.02000096,121630.0,121620.0,0.87155377]
[1760020320237,0.05880657,121630.0,121620.0,0.47836377]
[1760020320841,0.3618,121630.0,121610.0,0.03239]
[1760020321042,0.001,121630.0,121620.0,0.47836377]
[1760020321438,0.001,121630.0,121620.0,0.03239]
[1760020321739,0.05880657,121630.0,121620.0,0.8537377]
[1760020322140,0.001,121630.0,121620.0,1.6145377]
[1760020322443,0.001,121630.0,121620.0,2.3871377]
[1760020322639,0.48475678,121650.0,121620.0,1.27155377]
[1760020322841,0.48475678,121650.0,121630.0,0.47836377]
[1760020323039,0.3608,121640.0,121620.0,0.51075377]
[1760020323543,0.05780657,121640.0,121620.0,0.51075377]
[1760020323743,0.05780657,121640.0,121620.0,0.87155377]
[1760020323946,1.27907897,121650.0,121630.0,0.51075377]
[1760020324241,0.41860657,121640.0,121620.0,0.47836377]
[1760020324445,1.54741496,121630.0,121620.0,0.001]
[1760020324738,1.54741496,121630.0,121590.0,0.39319]
[1760020324739,1.87626393,121630.0,121590.0,0.27367]
[1760020324943,0.41853477,121620.0,121600.0,0.51075377]
[1760020325144,0.3608,121610.0,121600.0,0.51075377]
[1760020325341,0.05773477,121620.0,121600.0,0.51075377]
[1760020325645,0.41853477,121620.0,121600.0,0.51075377]
[1760020325846,0.43985223,121620.0,121600.0,0.51075377]
[1760020326043,0.3608,121610.0,121600.0,0.47836377]
[1760020326243,0.4469219,121610.0,121580.0,1.16555]
[1760020326439,0.4469219,121610.0,121580.0,1.1975274]
[1760020326639,0.4469219,121610.0,121590.0,0.47836377]
[1760020327346,1.2192419,121610.0,121590.0,0.47836377]
[1760020327547,1.2202419,121610.0,121590.0,0.47836377]
[1760020327748,0.4479219,121610.0,121590.0,0.47836377]
[1760020327949,1.2202019,121610.0,121590.0,0.47836377]
[1760020328349,1.2202019,121610.0,121600.0,0.47836377]
[1760020328948,1.2202019,121610.0,121590.0,0.03239]
[1760020329144,1.2202019,121610.0,121600.0,0.47836377]
[1760020329540,1.2202019,121610.0,121590.0,0.03239]
[1760020329747,1.2202019,121610.0,121600.0,0.47836377]
[1760020330241,1.2202019,121610.0,121560.0,0.03239]
[1760020330242,1.49090583,121610.0,121560.0,0.03239]
[1760020330447,0.3608,121580.0,121560.0,0.39319]
[1760020331050,0.3608,121580.0,121570.0,0.47836377]
[1760020331252,1.04212,121590.0,121570.0,0.47836377]
[1760020331446,0.3608,121590.0,121580.0,0.51074377]
[1760020331649,1.13296,121590.0,121580.0,0.47836377]
[1760020331947,0.3608,121600.0,121570.0,0.39318]
[1760020332253,0.42660444,121610.0,121590.0,0.87154377]
[1760020332444,0.42560444,121610.0,121600.0,0.47836377]
[1760020332650,1.20072444,121610.0,121600.0,0.51074377]
[1760020333241,0.42860444,121610.0,121600.0,0.47836377]
[1760020333445,0.42560444,121610.0,121600.0,0.47836377]
[1760020333749,1.94366837,121610.0,121580.0,0.03238]
[1760020333951,0.3608,121600.0,121590.0,0.47836377]
[1760020334351,0.3608,121600.0,121570.0,0.4251574]
[1760020334552,1.13288,121600.0,121590.0,0.47836377]
[1760020334848,0.42860444,121610.0,121590.0,0.47836377]
[1760020335047,1.13284,121600.0,121580.0,0.03238]
[1760020335252,1.13284,121600.0,121590.0,0.47836377]
[1760020335452,0.77204,121600.0,121590.0,0.47836377]
[1760020335652,0.42860444,121610.0,121580.0,0.39318]
[1760020335854,0.42860444,121610.0,121600.0,0.00075]
[1760020336047,0.42560444,121610.0,121600.0,0.47911377]
[1760020336251,1.19760444,121610.0,121600.0,0.03313]
[1760020336651,1.18970444,121610.0,121600.0,0.03313]
[1760020336851,1.19270444,121610.0,121600.0,0.03313]
[1760020337051,1.19270444,121610.0,121600.0,0.00075]
[1760020337251,0.0859924,121650.0,121630.0,0.03238]
[1760020337451,0.38212473,121650.0,121640.0,0.47536377]
[1760020337652,0.38212473,121650.0,121610.0,0.39318]
[1760020337653,1.08590866,121650.0,121610.0,0.39318]
[1760020337851,1.08590866,121650.0,121620.0,0.43757377]
[1760020337852,0.70378393,121640.0,121620.0,0.43757377]
[1760020338155,0.3608,121630.0,121620.0,0.43757377]
[1760020338357,1.15968473,121630.0,121610.0,0.03238]
[1760020338551,1.15968473,121630.0,121620.0,0.43757377]
[1760020338748,1.50266866,121630.0,121610.0,0.43757377]
[1760020338951,1.1382,121620.0,121600.0,0.83150377]
[1760020339151,0.7774,121610.0,121600.0,0.83150377]
[1760020339354,0.7774,121610.0,121600.0,0.39393]
[1760020339554,0.3608,121620.0,121600.0,0.83150377]
[1760020339754,0.77748,121610.0,121600.0,0.39393]
[1760020340153,0.77748,121610.0,121600.0,0.83150377]
[1760020340361,0.43004476,121620.0,121600.0,0.83150377]
[1760020340560,0.7772,121610.0,121600.0,0.39393]
[1760020340861,0.77712,121610.0,121600.0,0.36155]
[1760020341061,0.77812,121610.0,121600.0,0.36155]
[1760020341364,0.77812,121610.0,121600.0,0.79912377]
[1760020341551,0.001,121610.0,121600.0,0.83173377]
[1760020341757,0.77772,121610.0,121600.0,0.83173377]
[1760020342054,0.77772,121610.0,121600.0,0.79912377]
[1760020342361,0.79907891,121610.0,121600.0,0.83173377]
[1760020342758,0.79907891,121610.0,121600.0,0.00075]
[1760020342759,1.90278284,121610.0,121600.0,0.00075]
[1760020342963,1.12614284,121610.0,121570.0,0.3567]
[1760020343168,0.70378393,121600.0,121580.0,0.42157377]
[1760020343360,0.3608,121590.0,121570.0,0.38931]
[1760020343663,0.38215891,121590.0,121580.0,0.42157377]
[1760020343863,1.15935891,121590.0,121580.0,0.42157377]
[1760020344064,1.15935891,121590.0,121570.0,0.3567]
[1760020344265,1.15935891,121590.0,121580.0,0.42157377]
[1760020344565,0.38215891,121590.0,121580.0,0.42157377]
[1760020344863,0.00821287,121760.0,121650.0,0.82095763]
[1760020345064,4.21054393,121660.0,121590.0,0.3608]
[1760020345362,0.34298393,121600.0,121590.0,0.23832064]
[1760020345557,1.11966393,121600.0,121590.0,0.23832064]
[1760020345763,1.51966393,121600.0,121590.0,0.23832064]
[1760020346360,1.51934393,121600.0,121590.0,0.23832064]
[1760020346561,1.52134393,121600.0,121590.0,0.23832064]
[1760020346965,1.17836,121600.0,121590.0,0.23832064]
[1760020347764,0.402,121600.0,121590.0,0.23832064]
[1760020347964,1.17792,121600.0,121590.0,0.23832064]
[1760020348165,1.17792,121600.0,121590.0,0.24932064]
[1760020348366,0.402,121600.0,121590.0,0.24932064]
[1760020348562,1.17776,121600.0,121590.0,0.24932064]
[1760020348756,0.402,121600.0,121590.0,0.24932064]
[1760020348966,0.001,121600.0,121590.0,0.24932064]
[1760020349169,0.06791376,121600.0,121590.0,0.74646204]
[1760020349468,0.76875376,121600.0,121590.0,0.74646204]
[1760020349860,0.06791376,121600.0,121590.0,0.71385204]
[1760020351361,0.84351376,121600.0,121590.0,0.71385204]
[1760020351767,0.84219376,121600.0,121590.0,0.71385204]
[1760020351967,0.06891376,121600.0,121590.0,0.71385204]
[1760020352166,0.84419376,121600.0,121590.0,1.08944597]
[1760020352469,0.002,121600.0,121590.0,1.48944597]
[1760020352663,2.75770393,121650.0,121610.0,0.03261]
[1760020352664,2.11941293,121650.0,121610.0,0.03261]
[1760020352868,0.06549293,121650.0,121640.0,0.3608]
[1760020353070,0.77532,121650.0,121640.0,0.3608]
[1760020353266,0.77532,121650.0,121590.0,0.001]
[1760020353267,0.3879,121640.0,121590.0,0.001]
[1760020353462,0.3608,121590.0,121510.0,0.03261]
[1760020353669,0.3608,121520.0,121510.0,0.03261]
[1760020354069,0.3608,121530.0,121520.0,0.03261]
[1760020354268,0.3608,121530.0,121520.0,0.43261]
[1760020354464,0.36086241,121530.0,121520.0,0.43261]
[1760020355068,0.38009944,121530.0,121520.0,0.43261]
[1760020355368,0.38009944,121530.0,121520.0,1.21553]
[1760020355570,0.38009944,121530.0,121520.0,0.43361]
[1760020355770,0.38009944,121530.0,121520.0,1.21525]
[1760020356070,0.38009944,121530.0,121520.0,1.21625]
[1760020356270,0.44450576,121530.0,121520.0,1.21625]
[1760020356660,0.44450576,121530.0,121520.0,1.21589]
[1760020356864,0.44450576,121530.0,121520.0,0.43461]
[1760020357068,0.44450576,121530.0,121520.0,1.2478674]
[1760020357472,0.44450576,121530.0,121520.0,1.2475874]
[1760020357865,0.44450576,121530.0,121520.0,0.4665874]
[1760020358070,0.44450576,121530.0,121520.0,1.2475074]
[1760020358563,0.44450576,121530.0,121520.0,1.2473474]
[1760020359367,0.44450576,121530.0,121520.0,0.4665874]
[1760020359567,0.44450576,121530.0,121520.0,1.2473474]
[1760020360068,0.44450576,121530.0,121520.0,0.4665874]
[1760020360274,0.44450576,121530.0,121520.0,1.2467874]
[1760020360978,0.44450576,121530.0,121520.0,0.0339774]
[1760020361179,0.44450576,121530.0,121520.0,0.3983374]
[1760020361372,0.44450576,121530.0,121520.0,0.0339774]
[1760020361569,0.44450576,121530.0,121520.0,0.3746574]
[1760020361966,0.44450576,121530.0,121520.0,0.8057574]
[1760020362371,0.44450576,121530.0,121520.0,0.4057574]
[1760020362571,0.44450576,121530.0,121520.0,0.0650774]
[1760020362777,0.44450576,121530.0,121520.0,0.8446774]
[1760020362975,0.44450576,121530.0,121520.0,0.8127]
[1760020363273,0.44450576,121530.0,121520.0,0.002]
[1760020363469,0.44450576,121530.0,121520.0,1.2127]
[1760020363676,0.44450576,121530.0,121520.0,1.21242]
[1760020364380,0.08370576,121530.0,121520.0,1.21252]
[1760020364572,0.06446873,121530.0,121520.0,1.23073551]
[1760020365074,0.70378393,121550.0,121540.0,0.04036]
[1760020365281,0.3608,121550.0,121540.0,0.8196]
[1760020365583,0.38039138,121550.0,121540.0,0.8196]
[1760020366979,0.3608,121560.0,121550.0,0.10829]
[1760020367178,0.3608,121560.0,121550.0,0.90531295]
[1760020367777,0.38025968,121570.0,121560.0,0.04036]